Cogmind - Beta 13 @@@ ROGUE MODE // 2024.04.04 @ 14:59:53 Player: Lunace Result: Destroyed by WR-XIB(M) with Flamer Performance ------------- Evolutions (3) 1500 Regions Visited (7) 1400 Robots Destroyed (22) 110 Value Destroyed (475) 475 Prototype IDs (4) 80 Alien Tech Used (0) 0 Bonus (0) 0 TOTAL SCORE: 3565 Bonus ------- None Cogmind --------- Core Integrity 0/700 Matter 141/300 Energy 98/100 System Corruption 0% Temperature Cool (21) Movement Walking (120) Location -7/Lower Caves Parts ------- > --- POWER (1) -------- (None) > --- PROPULSION (4) --- Carbon-fiber Leg > --- UTILITY (6) ------ Improved Terrain Scan Processor Makeshift Terrain Scan Processor Seismic Detector > --- WEAPON (2) ------- (None) > --- INVENTORY (5) ---- Remote Datajack Peak State ------------ > --- POWER ------------ Heavy Ion Engine > --- PROPULSION ------- Flight Unit Flight Unit Improved Flight Unit > --- UTILITY ---------- Improved Sensor Array Improved Terrain Scanner Improved Terrain Scan Processor Drone Bay Drone Bay Drone Bay > --- WEAPON ----------- Light Assault Rifle > --- INVENTORY -------- Improved Sensor Array Drone Bay [Rating: 33] Favorites ----------- Power Light Ion Engine Engine Light Ion Engine Propulsion Flight Unit Treads Light Treads Leg Aluminum Leg Flight Unit Flight Unit Utility Improved Terrain Scan Processor Device Improved Sensor Array Storage Small Storage Unit Processor Improved Terrain Scan Processor Weapon Light Assault Rifle Energy Gun Particle Gun Ballistic Gun Light Assault Rifle Ballistic Cannon Flak Cannon Launcher Grenade Launcher Special Melee Weapon Improved Datajack Build | -11 -10 -10 -9 -8 -8 -7 -7 ------- Run | Yrd Mat Min Mat Mat Sto Fac Low Slots Evolved 6 | . . . 2 2 . 2 . Power . | . . . . . . . . Propulsion 2 | . . . 1 1 . . . Utility 4 | . . . 1 1 . 2 . Weapon . | . . . . . . . . Parts Attached 47 | 6 3 . 14 1 4 6 13 Power 5 | 1 . . 3 . . . 1 Engine 5 | 1 . . 3 . . . 1 Core . | . . . . . . . . Reactor . | . . . . . . . . Propulsion 17 | 2 2 . 6 1 1 . 5 Treads 1 | . . . . . . . 1 Leg 4 | 2 . . . . . . 2 Wheel . | . . . . . . . . Hover . | . . . . . . . . Flight 12 | . 2 . 6 1 1 . 2 Utility 13 | 1 . . . . 3 5 4 Device 10 | . . . . . 2 5 3 Storage 1 | 1 . . . . . . . Processor 2 | . . . . . 1 . 1 Hackware . | . . . . . . . . Protection . | . . . . . . . . Artifact . | . . . . . . . . Weapon 12 | 2 1 . 5 . . 1 3 Energy Gun 1 | . . . . . . . 1 Energy Cannon . | . . . . . . . . Ballistic Gun 7 | 2 . . 5 . . . . Ballistic Cannon 1 | . . . . . . . 1 Launcher 2 | . 1 . . . . . 1 Special Weapon . | . . . . . . . . Impact Weapon . | . . . . . . . . Slashing Weapon . | . . . . . . . . Piercing Weapon . | . . . . . . . . Special Melee Weapon 1 | . . . . . . 1 . Unidentified Prototypes 2 | . . . 2 . . . . Parts Lost 25 | . 3 . 6 . 3 1 12 Power 3 | . . . 2 . . . 1 Propulsion 12 | . 2 . 3 . 2 1 4 Utility 3 | . . . . . . . 3 Weapon 7 | . 1 . 1 . 1 . 4 Highest Loss Streak 5 | . 3 . 4 . 3 1 5 To Critical Strikes 1 | . . . 1 . . . . Average Slot Usage (%) 49 | . 75 57 60 63 70 61 35 Engine 5 | . 14 14 8 9 9 . 3 Treads 1 | . . . . . . . 2 Leg 4 | . 20 . . . . . 4 Flight 11 | . 3 28 30 36 33 22 1 Device 5 | . . . . . 6 24 5 Storage 1 | . 12 . . . . . . Processor 6 | . . . . . 5 7 10 Energy Gun 1 | . . . . . . . 3 Ballistic Gun 6 | . 14 . 19 18 15 . . Launcher 2 | . 9 14 1 . . . 1 Naked Turns . | . . . . . . . . Heaviest Build 21 | 10 12 6 10 10 12 21 15 Greatest Support 20 | 20 20 8 13 17 17 13 20 Greatest Overweight (x) 4 | . 3 . . . . 2 4 Average Overweight (x) . | . . . . . . . . Largest Inventory Capacity 8 | 8 8 5 5 5 5 5 5 Average Capacity 5 | 6 7 5 5 5 5 5 5 Most Carried 5 | 3 3 2 5 3 5 5 5 Average Carried 2 | . 1 2 2 3 3 2 2 Final Capacity 8 | 8 5 5 5 5 5 5 5 Final Carried 5 | . 2 2 4 3 5 2 1 Class Distribution -------------------- 39% | Mutant 30% | Scavenger-Mutant 14% | Scout 10% | Derelict-Mutant 4% | Scavenger-Sprinter Dominant Class ---------------- Mutant | -10/Materials Mutant | -10/Mines Scavenger-Mutant | -9/Materials Scavenger-Mutant | -8/Materials Scavenger-Sprinter | -8/Storage Scout | -7/Factory Scavenger-Mutant | -7/Lower Caves Resources | -11 -10 -10 -9 -8 -8 -7 -7 ----------- Run | Yrd Mat Min Mat Mat Sto Fac Low Matter Collected 747 | 173 33 22 223 . 114 . 182 Remotely . | . . . . . . . . Salvage Created 384 | . 120 . 134 . . . 130 Parts 38 | . 14 . 16 . . . 8 Haulers Intercepted . | . . . . . . . . Recyclers Shooed 2 | . 2 . . . . . . Parts Field Recycled . | . . . . . . . . Retrieved Matter . | . . . . . . . . Parts Self-Destructed 8 | . . . . . . . 8 Prevented . | . . . . . . . . Kills | -11 -10 -10 -9 -8 -8 -7 -7 ------- Run | Yrd Mat Min Mat Mat Sto Fac Low Combat Hostiles Destroyed 20 | . 5 . 9 . . . 6 Guns 11 | . 1 . 9 . . . 1 Cannons 1 | . . . . . . . 1 AOE 8 | . 4 . . . . . 4 Classes Destroyed 5 | . 4 . . . . . 1 Mechanic 1 | . 1 . . . . . . Watcher 1 | . 1 . . . . . . Swarmer 15 | . 3 . 9 . . . 3 Grunt 2 | . 2 . . . . . . Sentry 1 | . . . . . . . 1 Thug 2 | . . . . . . . 2 Best Kill Streak 7 | . 7 . 6 . . . 3 Combat Bots Only 6 | . 4 . 6 . . . 3 Max Kills in Single Turn 3 | . 1 . 2 . . . 3 Gunslinging 1 | . . . 1 . . . . Exploded 2 | . 1 . . . . . 2 Melee . | . . . . . . . . Uniques/NPCs Destroyed . | . . . . . . . . Combat | -11 -10 -10 -9 -8 -8 -7 -7 -------- Run | Yrd Mat Min Mat Mat Sto Fac Low Hostile Shots Fired 337 | . 30 . 111 . 23 29 144 Missed 138 | . 10 . 53 . 10 16 49 Damage Taken 2816 | . 533 . 585 . 217 140 1341 Core 1166 | . 169 . 228 . 63 47 659 Absorbed by Shields . | . . . . . . . . Core Remaining (%) 65 | 100 . 32 43 . 88 . . Volleys Fired 61 | . 20 . 27 . . . 14 Largest 2 | . 2 . 2 . . . 2 Hottest 83 | . 50 . 40 . . . 83 Shots Fired 105 | . 29 . 54 . . . 22 Gun 79 | . 20 . 54 . . . 5 Cannon 8 | . . . . . . . 8 Launcher 18 | . 9 . . . . . 9 Special . | . . . . . . . . Kinetic 82 | . 20 . 54 . . . 8 Thermal 5 | . . . . . . . 5 Explosive 18 | . 9 . . . . . 9 Electromagnetic . | . . . . . . . . Robot Hit Streak 6 | . 3 . 4 . . . 6 Robot Miss Streak 6 | . 3 . 5 . . . 6 Penetration Max . | . . . . . . . . Secondary Targets 2 | . . . 2 . . . . Max Gunslinging Chain 1 | . . . 1 . . . . Shots Hit Robots 58 | . 15 . 28 . . 1 14 Core Hits 48 | . 13 . 14 . . . 21 Critical Kills . | . . . . . . . . Critical Parts Destroyed . | . . . . . . . . Critical Strikes . | . . . . . . . . Melee Attacks 2 | . . . . . . 1 1 Impact . | . . . . . . . . Slashing . | . . . . . . . . Piercing . | . . . . . . . . Sneak Attacks 1 | . . . . . . . 1 Combat Hostiles . | . . . . . . . . Follow-up Attacks . | . . . . . . . . Damage Inflicted 1824 | . 535 . 292 . . 2 995 Guns 372 | . 66 . 249 . . . 57 Cannons 118 | . . . . . . . 118 Explosions 1332 | . 469 . 43 . . . 820 Melee . | . . . . . . . . Ramming 2 | . . . . . . 2 . Kinetic 433 | . 66 . 249 . . . 118 Thermal 57 | . . . . . . . 57 Explosive 1289 | . 469 . . . . . 820 Electromagnetic 43 | . . . 43 . . . . Impact . | . . . . . . . . Slashing . | . . . . . . . . Piercing . | . . . . . . . . Highest Corruption 8 | . 8 8 . . . . . Average Corruption 8 | . 8 8 . . . . . Corruption Purged . | . . . . . . . . Corruption Blocked . | . . . . . . . . Effects 2 | . 2 . . . . . . Matter Fused 1 | . 1 . . . . . . Data Loss (major) 1 | . 1 . . . . . . Overload Shots . | . . . . . . . . Overflow Damage 38 | . . . . . . . 38 Projectiles . | . . . . . . . . Explosions 38 | . . . . . . . 38 Melee . | . . . . . . . . Knockbacks . | . . . . . . . . Impact . | . . . . . . . . Kinetic . | . . . . . . . . Secondary . | . . . . . . . . Self-Inflicted Damage 86 | . 36 . . . . 1 49 Shots 3 | . 2 . . . . . 1 Rammed 1 | . . . . . . 1 . Targets Rammed 1 | . . . . . . 1 . Kicked . | . . . . . . . . Crushed . | . . . . . . . . Highest Temperature 29 | . 29 . 6 . 7 . 14 Average Temperature 9 | . 12 . 4 . 5 . 8 Received Heat Transfer 533 | . 75 . 105 . 54 12 287 Siege Activations . | . . . . . . . . Robots Corrupted . | . . . . . . . . Combat Hostiles . | . . . . . . . . Parts Fried . | . . . . . . . . Impact Corruptions . | . . . . . . . . Robots Melted . | . . . . . . . . Combat Hostiles . | . . . . . . . . Parts Melted . | . . . . . . . . Heat Transferred 148 | . . . . . . . 148 Parts Sabotaged . | . . . . . . . . Parts Stolen . | . . . . . . . . Parts Stripped . | . . . . . . . . Power Chain Reactions . | . . . . . . . . Alert | -11 -10 -10 -9 -8 -8 -7 -7 ------- Run | Yrd Mat Min Mat Mat Sto Fac Low Peak Influence 330 | . 162 63 330 154 130 63 . Initial 139 | . . 63 24 139 65 58 . Average 108 | . 79 63 172 140 113 57 . Maximum Alert Level 1 | . . . 1 . . . . Low Security (%) 83 | 100 100 100 55 100 100 100 . Level 1 16 | . . . 44 . . . . Level 2 . | . . . . . . . . Level 3 . | . . . . . . . . Level 4 . | . . . . . . . . Level 5 . | . . . . . . . . High Security . | . . . . . . . . Max Security . | . . . . . . . . Squads Dispatched 4 | . 1 . 2 . . 1 . Investigation . | . . . . . . . . Extermination . | . . . . . . . . Reinforcement 4 | . 1 . 2 . . 1 . Assault . | . . . . . . . . Garrison . | . . . . . . . . Intercept . | . . . . . . . . Searches Triggered . | . . . . . . . . Construction Impeded . | . . . . . . . . Haulers Reinforced . | . . . . . . . . Active Scanning Responses . | . . . . . . . . Cargo Convoy Interrupts . | . . . . . . . . Stealth | -11 -10 -10 -9 -8 -8 -7 -7 --------- Run | Yrd Mat Min Mat Mat Sto Fac Low Distress Signals 2 | . . . 1 . 1 . . Communications Jammed . | . . . . . . . . Distress Signals . | . . . . . . . . Times Spotted 67 | . 8 . 21 . 8 5 25 Peak Tracking Total 9 | . 3 . 7 . 9 7 7 Tactical Retreats 7 | . . . 3 . . . 4 Traps | -11 -10 -10 -9 -8 -8 -7 -7 ------- Run | Yrd Mat Min Mat Mat Sto Fac Low Traps Triggered . | . . . . . . . . Indirectly . | . . . . . . . . Trap Hack Attempts . | . . . . . . . . Triggered . | . . . . . . . . Disarmed . | . . . . . . . . Reprogrammed . | . . . . . . . . Reused . | . . . . . . . . Traps Extracted . | . . . . . . . . Installed . | . . . . . . . . Triggered . | . . . . . . . . Machines | -11 -10 -10 -9 -8 -8 -7 -7 ---------- Run | Yrd Mat Min Mat Mat Sto Fac Low Machines Disabled 1 | . . . 1 . . . . Max in Single Turn 1 | . . . 1 . . . . Machines Repaired . | . . . . . . . . Machines Dismantled . | . . . . . . . . Machines Sabotaged . | . . . . . . . . Overloaded Fab Kills . | . . . . . . . . Hacking | -11 -10 -10 -9 -8 -8 -7 -7 --------- Run | Yrd Mat Min Mat Mat Sto Fac Low Machines Accessed 11 | . . . 3 1 6 1 . Terminals 8 | . . . 2 . 5 1 . Fabricators . | . . . . . . . . Repair Stations . | . . . . . . . . Recycling Units 1 | . . . . . 1 . . Scanalyzers 2 | . . . 1 1 . . . Garrison Access . | . . . . . . . . Total Hacks 19 | . . . 6 2 10 1 . Successful 16 | . . . 6 2 7 1 . Failed 3 | . . . . . 3 . . Catastrophic . | . . . . . . . . Database Lockouts . | . . . . . . . . Manual . | . . . . . . . . Terminals 12 | . . . 4 . 7 1 . Fabricators . | . . . . . . . . Repair Stations . | . . . . . . . . Recycling Units 3 | . . . . . 3 . . Scanalyzers 4 | . . . 2 2 . . . Garrison Access . | . . . . . . . . Terminal Hacks 10 | . . . 4 . 5 1 . Record 1 | . . . 1 . . . . Prototype ID Bank 1 | . . . 1 . . . . Open Door 2 | . . . . . 2 . . Locate Traps 3 | . . . 1 . 2 . . Dispatch Records 1 | . . . 1 . . . . Recall Investigation 1 | . . . . . 1 . . Zone Layout 1 | . . . . . . 1 . Fabricator Hacks . | . . . . . . . . Repair Station Hacks . | . . . . . . . . Recycling Unit Hacks 2 | . . . . . 2 . . Process 1 | . . . . . 1 . . Retrieve Matter 1 | . . . . . 1 . . Scanalyzer 4 | . . . 2 2 . . . Insert Component 2 | . . . 1 1 . . . Analyze 2 | . . . 1 1 . . . Garrison Access Hacks . | . . . . . . . . Unauthorized Hacks . | . . . . . . . . Terminals . | . . . . . . . . Fabricators . | . . . . . . . . Repair Stations . | . . . . . . . . Recycling Units . | . . . . . . . . Scanalyzers . | . . . . . . . . Garrison Access . | . . . . . . . . Data Cores Recovered . | . . . . . . . . Used . | . . . . . . . . Hacking Detections 4 | . . . 2 . 2 . . Full Trace Events . | . . . . . . . . Feedback Events . | . . . . . . . . Feedback Blocked . | . . . . . . . . Robot Schematics Acquired . | . . . . . . . . Robots Built . | . . . . . . . . Authchips . | . . . . . . . . Time . | . . . . . . . . Total Robot Build Rating . | . . . . . . . . Part Schematics Acquired 2 | . . . 1 1 . . . Parts Built . | . . . . . . . . Authchips . | . . . . . . . . Time . | . . . . . . . . Total Part Build Rating . | . . . . . . . . Parts Repaired . | . . . . . . . . Time . | . . . . . . . . Parts Recycled . | . . . . . . . . Recycled Matter 13 | . . . . . 13 . . Retrieved Matter 13 | . . . . . 13 . . Retrieved Components . | . . . . . . . . Parts Scanalyzed 2 | . . . 1 1 . . . Part Schematics Acquired 2 | . . . 1 1 . . . Parts Damaged . | . . . . . . . . Bothacking | -11 -10 -10 -9 -8 -8 -7 -7 ------------ Run | Yrd Mat Min Mat Mat Sto Fac Low Used RIF Installer . | . . . . . . . . Robots Hacked . | . . . . . . . . Non-combat . | . . . . . . . . Combat . | . . . . . . . . Robot Hacks Applied . | . . . . . . . . Relay Couplers Released . | . . . . . . . . Fabnet Peak Effective % . | . . . . . . . . Robots Rewired . | . . . . . . . . Allies Hacked . | . . . . . . . . Hacks Repelled . | . . . . . . . . Allies | -11 -10 -10 -9 -8 -8 -7 -7 -------- Run | Yrd Mat Min Mat Mat Sto Fac Low Total Allies . | . . . . . . . . Largest Group . | . . . . . . . . Highest-Rated Group . | . . . . . . . . Highest-Rated Ally . | . . . . . . . . Total Orders 8 | . . . . . . 8 . EXPLORE 8 | . . . . . . 8 . Ally Attacks . | . . . . . . . . Total Damage . | . . . . . . . . Kills . | . . . . . . . . Allies Corrupted 1 | . . . . . . 1 . Allies Melted . | . . . . . . . . Intel | -11 -10 -10 -9 -8 -8 -7 -7 ------- Run | Yrd Mat Min Mat Mat Sto Fac Low Robot Analysis Total . | . . . . . . . . Derelict Logs Recovered 2 | . . 1 . . . . 1 Drone Launches 8 | . . . . . . 8 . Drone Recoveries . | . . . . . . . . Exploration | -11 -10 -10 -9 -8 -8 -7 -7 ------------- Run | Yrd Mat Min Mat Mat Sto Fac Low Turns Passed 1397 | 57 151 36 252 17 82 98 704 Spaces Moved 1697 | 36 114 96 404 50 197 150 650 Core 169 | 8 9 . . . . 2 150 Treads 176 | . . . . . . . 176 Legs 177 | 28 49 . . . . . 100 Wheels . | . . . . . . . . Hover . | . . . . . . . . Flight 1175 | . 56 96 404 50 197 148 224 Fastest Speed 31 | 50 37 37 34 31 31 34 37 Average Speed 60 | 104 85 37 34 31 31 38 90 Slowest Speed 250 | 120 200 37 37 31 34 150 250 Overloaded Moves . | . . . . . . . . Propulsion Burnouts . | . . . . . . . . Robots Hopped 8 | . 1 . 4 . 3 . . Cave-ins Triggered 1 | . 1 . . . . . . Exploration Rate (%) 31 | 3 25 43 45 7 35 26 71 Regions Visited 7 Branch Regions 3 Pre-discovered Areas 1 | . . . . . . . 1 Known Exits Taken . | . . . . . . . . Unknown Exits Taken 7 | 1 1 1 1 1 1 1 . Scrap Searched 5 | . . 1 . . . . 4 Spaces Dug . | . . . . . . . . Terrain Destroyed 131 | . 51 . . . . . 80 Melee . | . . . . . . . . Projectile . | . . . . . . . . AOE 131 | . 51 . . . . . 80 Terrain Rammed . | . . . . . . . . Walls Destroyed . | . . . . . . . . Machines Disabled . | . . . . . . . . Actions | -11 -10 -10 -9 -8 -8 -7 -7 --------- Run | Yrd Mat Min Mat Mat Sto Fac Low Total 1965 | 55 140 95 469 50 213 194 749 Wait 106 | 8 . . 9 . 6 25 58 Move 1675 | 35 111 95 395 49 190 150 650 Hop 8 | . 1 . 4 . 3 . . Pick Up 45 | 6 4 . 15 . 8 3 9 Fast Attach . | . . . . . . . . Attach 40 | 6 2 . 8 1 4 6 13 Detach 6 | . . . . . . 3 3 Swap 7 | . 1 . 6 . . . . Drop 15 | . 1 . 5 . 2 6 1 Fire 61 | . 20 . 27 . . . 14 Melee 2 | . . . . . . 1 1 Ram . | . . . . . . . . Kick . | . . . . . . . . Crush . | . . . . . . . . Escape Stasis . | . . . . . . . . Rewire . | . . . . . . . . Trap . | . . . . . . . . Miscellaneous . | . . . . . . . . Route ------- -11/Scrapyard -10/Materials -10/Mines -9/Materials -8/Materials -8/Storage -7/Factory -7/Lower Caves History --------- Turn | Location | Event 24 | -11/Scrapyard | Discovered new exit (range 16) 58 | -11/Scrapyard | Entered Materials 132 | -10/Materials | Discovered new exit (range 16) 163 | -10/Materials | Crushed by falling debris 163 | -10/Materials | Core integrity fell below 50% 194 | -10/Materials | Lost 3 parts (2n1w) 209 | -10/Materials | Entered Mines 226 | -10/Mines | Learned Materials garrison access intel 231 | -10/Mines | Discovered new exit (range 16) 245 | -10/Mines | Entered Materials 245 | -9/Materials | Evolved 2 slots: Propulsion x1, Utility x1 321 | -9/Materials | Build established: Mutant 344 | -9/Materials | Lost 4 parts (1p2n1w) 481 | -9/Materials | Core integrity fell below 50% 491 | -9/Materials | Discovered new exit (range 15) 497 | -9/Materials | Entered another Materials area 497 | -8/Materials | Evolved 2 slots: Propulsion x1, Utility x1 498 | -8/Materials | Loaded intel: 1 garrison access location 505 | -8/Materials | Discovered new exit (range 9) 514 | -8/Materials | Entered Storage 581 | -8/Storage | Discovered new exit (range 15) 596 | -8/Storage | Entered Factory 596 | -7/Factory | Evolved 2 slots: Utility x2 604 | -7/Factory | Lost 3 parts (2n1w) 687 | -7/Factory | Discovered new exit (range 14) 694 | -7/Factory | Entered Lower Caves 726 | -7/Lower Caves | Encountered a Warlord checkpoint 873 | -7/Lower Caves | Attracted the attention of an 0b10 checkpoint 1136 | -7/Lower Caves | Attracted the attention of an 0b10 base 1196 | -7/Lower Caves | Core integrity fell below 50% 1214 | -7/Lower Caves | Core integrity fell below 20% 1258 | -7/Lower Caves | Lost 5 parts (1p1n2u1w) 1388 | -7/Lower Caves | Attacked by a faux Warlord 1398 | -7/Lower Caves | Destroyed by WR-XIB(M) with Flamer Last Messages --------------- Destroyed Lgt. Nuclear Core. S-27 Virus destroyed. The unstable cave ceiling collapses. VTOL Module fries itself beyond repair. The unstable cave ceiling collapses. Destroyed Lgt. Angular Momentum Engine. The unstable cave ceiling collapses. GE-BTB(g) destroyed. W7-WW2(g) destroyed. Flak Cannon destroyed. Destroyed Flak Cannon. Hvy. Rocket Launcher destroyed. WR-XIB(M): "I've never seen anything like that down here. It must be an Unaware spy!" WR-XIB(M): "You are tresspassing on Warlord territory, MY territory! Guards, destroy it!" Acquired 5 matter. The unstable cave ceiling collapses. Knocked back. [Achievement: Just Browsing] Map ----- +----------------------------------------------------+ | ???????????????????????????????????????????????##? | | ???????????????????????????????????????????????#?? | | ?????????????????????????????????????????????????? | | ?????????????????????????????????????????????????? | | ?????????????????????????????????????????????????? | | ?????????????????????????????????????????????????? | | ?????????????????????????????????????????????????? | | ?????????????????????????????????????????????????? | | ?????????????????????????????????????????????????? | | ?????????????????????????????????????????????????? | | ?????????????????????????????????????????????????? | | ?????????????????????????????????????????????????? | | ????????????????????###??????????????????????????? | | ???????????????????## #?????????????????????????? | | ?????????????????### ####?????????????????????? | | ????????????????## % ?????????????????????? | | ????????????????? = #?????????????????????? | | ?????????????????? #?????????????????????? | | ???????????????????# ##????????????????????? | | ????????????????????# #????????????????????? | | ?????????????????????# #????????????????????? | | ?????????????????????# ##???????????????????? | | ????????????????????## #?######????????????? | | ???????????????????## ### #???????????# | | ???????????????????# #???????????# | | ????????????????#### @ % % #???????????? | | ???????????? ##???????????? | | ?????????? # ##????????????? | | ??????????? ???# # bb #####?????????? | | ??????????? ???? M ###b % #??????????? | | ???????????????# # ##### #????????### | | ??????????????# % % ## #??### | | ??????????????# * #?? | | ??????????????# ## # #????? | | ??????????????#?# ##?#####??????? | | ??????????????? % #????????????? | | ??????????????? #????????????# | | ???????????????? #????????????# | | ?????????????????? # # ####?######### | | ??????????????????? ### ###### ## | | ???????????????????? ???##### | | ???????????????????? ???????# | | ????????????????????? #????????##### ### | | ??????????????????????? ?????????????# #?# | | ????????????????????????????????????# ## | | ????????????????????????????????????# # | | ????????????????????????????????????## # # | | ?????????????????????????????????????# ## | | ?????????????????????????????????????## ###### # | | ??????????????????????????????????????####?????### | +----------------------------------------------------+ Best States ------------- Heat Dissipation 34 Energy Generation 16 Energy Capacity 290 Matter Stores 300 Matter Capacity 300 Sight Range 16 Robot Scan Range 15 Terrain Scan Range 16 Terrain Scan Density 235 Evasion (%) 63 Recoil Reduction 1 Item Schematics ----------------- Lgt. Assault Rifle | -9/Materials | Scanalyzed Flight Unit | -8/Materials | Scanalyzed Robot Schematics ------------------ None Fabricated ------------ Nothing Alien Tech Used ----------------- None Achievements -------------- Just Browsing Challenges ------------ None Game ------ Seed ArcSensorPerforator Manual? 0 Play Time 00:30:17 Cumulative 15.9 hours Start 2024.04.04 @ 14:31:15 End 2024.04.04 @ 14:59:53 Sessions 1 Manual Loads 0 Difficulty Rogue Special Mode None Game No. 18 Rogue 13 Adventurer 5 Explorer 0 Win Type - Total 1 Types 1/0/0/0/0/0/0/0/0 Lore% 10 Gallery% 25 Achievement% 26 Wizard Run 0 Options --------- Layout 1 ASCII 0 Keyboard 0 Movement Mouse Keybinds 0 Fullscreen 1 Font 24/Terminus Map View 50x35 Zoom Use 0% Tactical HUD 0 Map Filters NONE Filters NONE Steam 1 RUN: 12cd81a4-f28f-4f48-a84e-2dab2f306b0d